Cogmind - Beta 9.2 *** ADVENTURER MODE // 2019.11.19 @ 14:57:44 Player: DE3000 Result: Self-destructed Performance ------------- Evolutions (2) 1000 Regions Visited (3) 600 Robots Destroyed (75) 375 Value Destroyed (2076) 2076 Prototype IDs (1) 20 Alien Tech Used (0) 0 Bonus (101) 101 TOTAL SCORE: 4172 Bonus ------- High Alert Combat Kills 101 Cogmind --------- Core Integrity 196/550 Matter 203/300 Energy 159/160 System Corruption 21% Temperature Cool (9) Movement Core (400) Ox7 Location -8/Materials Parts ------- > --- POWER (2) -------- Light Nuclear Core > --- PROPULSION (4) --- (None) > --- UTILITY (3) ------ Medium Storage Unit Medium Storage Unit Improved ECM Suite > --- WEAPON (2) ------- (None) > --- INVENTORY (12) --- Medium Matter Pod (0) High-capacity Matter Pod (200) Improved Signal Interpreter Improved Terrain Scanner Datajack Peak State ------------ > --- POWER ------------ Deuterium Engine Light Nuclear Core > --- PROPULSION ------- Aluminum Leg Aluminum Leg Carbon-fiber Leg Carbon-fiber Leg > --- UTILITY ---------- Improved Heat Sink Medium Storage Unit Medium Storage Unit > --- WEAPON ----------- Advanced Beam Cannon Assault Cannon > --- INVENTORY -------- Ion Engine Aluminum Leg High-capacity Matter Pod Improved Signal Interpreter Improved Terrain Scanner Improved ECM Suite Grenade Launcher Rocket Launcher Mini Grenade Launcher Datajack [Rating: 26] Favorites ----------- Power Ion Engine Engine Ion Engine Power Core Light Nuclear Core Propulsion Improved Aluminum Leg Leg Improved Aluminum Leg Utility Medium Storage Unit Device High-powered Tractor Beam Storage Medium Storage Unit Weapon Assault Rifle Energy Gun Shock Rifle Energy Cannon Light EM Pulse Cannon Ballistic Gun Assault Rifle Ballistic Cannon Light Cannon Launcher Mini Grenade Launcher Build | -11 -10 -9 -8 ------- Run | Scr Mat Mat Mat Slots Evolved 4 | . . 2 2 Power 1 | . . . 1 Propulsion 2 | . . 2 . Utility 1 | . . . 1 Weapon . | . . . . Parts Attached 62 | 6 11 14 31 Power 10 | 1 1 2 6 Engine 8 | 1 1 2 4 Core 2 | . . . 2 Reactor . | . . . . Propulsion 20 | 2 3 7 8 Treads . | . . . . Leg 20 | 2 3 7 8 Wheel . | . . . . Hover . | . . . . Flight . | . . . . Utility 10 | 1 3 . 6 Device 6 | . 1 . 5 Storage 4 | 1 2 . 1 Processor . | . . . . Hackware . | . . . . Protection . | . . . . Artifact . | . . . . Weapon 22 | 2 4 5 11 Energy Gun 2 | . . . 2 Energy Cannon 5 | . . 2 3 Ballistic Gun 5 | 2 2 1 . Ballistic Cannon 4 | . 2 1 1 Launcher 6 | . . 1 5 Special Weapon . | . . . . Impact Weapon . | . . . . Slashing Weapon . | . . . . Piercing Weapon . | . . . . Special Melee Weapon . | . . . . Unidentified Prototypes 1 | . . . 1 Parts Lost 25 | . . 4 21 Power 3 | . . . 3 Propulsion 11 | . . 2 9 Utility 4 | . . . 4 Weapon 7 | . . 2 5 Highest Loss Streak 8 | . . 3 8 Average Slot Usage (%) 93 | . 97 93 90 Engine 13 | . 14 11 14 Leg 32 | . 27 38 31 Device 6 | . 11 . 6 Storage 17 | . 14 22 18 Energy Gun 1 | . . . 3 Energy Cannon 1 | . . 1 3 Ballistic Gun 9 | . 17 9 . Ballistic Cannon 7 | . 10 8 2 Launcher 2 | . . 1 6 Naked Turns . | . . . . Heaviest Build 40 | 8 22 22 40 Greatest Support 52 | 20 26 52 51 Greatest Overweight (x) 10 | . 1 . 10 Average Overweight (x) . | . . . . Largest Inventory Capacity 12 | 4 10 10 12 Average Capacity 8 | 4 6 10 11 Most Carried 12 | 4 9 10 12 Average Carried 7 | 2 5 8 8 Final Capacity 12 | 4 10 10 12 Final Carried 10 | 1 8 10 5 Class Distribution -------------------- 86% | Mutant 13% | Scavenger-Mutant Dominant Class ---------------- Mutant | -10/Materials Mutant | -9/Materials Mutant | -8/Materials Resources | -11 -10 -9 -8 ----------- Run | Scr Mat Mat Mat Matter Collected 1753 | 276 616 287 574 Remotely 544 | . 336 . 208 Salvage Created 2317 | 68 445 587 1217 Parts 157 | 5 42 36 74 Haulers Intercepted 1 | . . . 1 Recyclers Shooed 3 | . 1 1 1 Parts Field Recycled . | . . . . Retrieved Matter . | . . . . Parts Self-Destructed . | . . . . Prevented . | . . . . Kills | -11 -10 -9 -8 ------- Run | Scr Mat Mat Mat Combat Hostiles Destroyed 48 | 1 10 15 22 Guns 15 | 1 8 3 3 Cannons 20 | . 2 9 9 AOE 13 | . . 3 10 Classes Destroyed 11 | 2 3 3 3 Worker 7 | 1 1 2 3 Builder 5 | . . . 5 Hauler 1 | . . . 1 Recycler 5 | . 2 . 3 Operator 2 | . . 1 1 Watcher 7 | . 3 1 3 Swarmer 9 | . 6 3 . Grunt 30 | 1 4 8 17 Brawler 1 | . . 1 . Duelist 1 | . . . 1 Sentry 7 | . . 3 4 Best Kill Streak 8 | 2 4 5 8 Combat Bots Only 4 | 1 3 3 4 Max Kills in Single Turn 3 | 1 1 3 3 Gunslinging . | . . . . Exploded 2 | . . 2 2 Melee . | . . . . Uniques/NPCs Destroyed . | . . . . Combat | -11 -10 -9 -8 -------- Run | Scr Mat Mat Mat Damage Taken 2887 | 27 242 466 2152 Core 386 | . 8 24 354 Absorbed by Shields . | . . . . Core Remaining (%) 96 | 100 96 94 . Volleys Fired 158 | 4 26 44 84 Largest 2 | 1 2 2 2 Hottest 112 | 20 55 76 112 Shots Fired 240 | 4 50 87 99 Gun 102 | 4 27 43 28 Cannon 116 | . 23 43 50 Launcher 22 | . . 1 21 Special . | . . . . Kinetic 166 | 4 50 78 34 Thermal 15 | . . . 15 Explosive 22 | . . 1 21 Electromagnetic 37 | . . 8 29 Robot Hit Streak 26 | 4 8 13 26 Robot Miss Streak 4 | . 3 2 4 Penetration Max . | . . . . Secondary Targets . | . . . . Shots Hit Robots 169 | 4 24 68 73 Core Hits 128 | 3 20 31 74 Critical Hits 2 | . . 2 . Critical Kills 1 | . . 1 . Critical Parts Destroyed 1 | . . 1 . Melee Attacks . | . . . . Impact . | . . . . Slashing . | . . . . Piercing . | . . . . Sneak Attacks . | . . . . Combat Hostiles . | . . . . Follow-up Attacks . | . . . . Damage Inflicted 4879 | 54 372 1134 3319 Guns 991 | 54 212 275 450 Cannons 1743 | . 160 605 978 Explosions 2124 | . . 246 1878 Melee . | . . . . Ramming 21 | . . 8 13 Kinetic 1867 | 54 372 749 692 Thermal 266 | . . . 266 Explosive 2124 | . . 246 1878 Electromagnetic 601 | . . 131 470 Impact . | . . . . Slashing . | . . . . Piercing . | . . . . Highest Corruption 21 | . . . 21 Average Corruption 5 | . . . 5 Corruption Purged . | . . . . Effects 21 | . . . 21 Message Errors 3 | . . . 3 Matter Fused 5 | . . . 5 Heat Flow Errors 1 | . . . 1 Energy Discharges 1 | . . . 1 Data Loss (minor) 2 | . . . 2 Targeting Errors 5 | . . . 5 Weapon Failures 4 | . . . 4 Overload Shots . | . . . . Overflow Damage 108 | . . 63 45 Projectiles 9 | . . 9 . Explosions 99 | . . 54 45 Melee . | . . . . Knockbacks 20 | . . 4 16 Impact . | . . . . Kinetic 16 | . . 4 12 Secondary 4 | . . . 4 Self-Inflicted Damage 252 | . . 81 171 Shots 10 | . . 1 9 Rammed 2 | . . 1 1 Targets Rammed 6 | . . 4 2 Kicked 4 | . . 3 1 Crushed . | . . . . Highest Temperature 446 | . 7 83 446 Average Temperature 86 | . 3 17 119 Received Heat Transfer 1116 | 18 15 183 900 Effects 4 | . . . 4 Shutdowns 3 | . . . 3 Energy Bleed 1 | . . . 1 Siege Activations . | . . . . Robots Corrupted . | . . . . Combat Hostiles . | . . . . Parts Fried 5 | . . 1 4 Impact Corruptions . | . . . . Robots Melted . | . . . . Combat Hostiles . | . . . . Parts Melted . | . . . . Heat Transferred 481 | . . . 481 Parts Sabotaged . | . . . . Parts Stolen . | . . . . Parts Stripped . | . . . . Power Chain Reactions . | . . . . Missiles Intercepted . | . . . . Alert | -11 -10 -9 -8 ------- Run | Scr Mat Mat Mat Peak Influence 614 | 25 210 275 614 Average Influence 146 | 10 58 123 286 Maximum Alert Level 2 | . 1 1 2 Low Security (%) 72 | 100 99 79 30 Level 1 23 | . . 20 54 Level 2 4 | . . . 15 Level 3 . | . . . . Level 4 . | . . . . Level 5 . | . . . . High Security . | . . . . Max Security . | . . . . Squads Dispatched 4 | . . 1 3 Investigation . | . . . . Extermination . | . . . . Reinforcement 4 | . . 1 3 Assault . | . . . . Garrison . | . . . . Intercept . | . . . . Construction Impeded 2 | . . . 2 Haulers Reinforced . | . . . . Stealth | -11 -10 -9 -8 --------- Run | Scr Mat Mat Mat Distress Signals 5 | . 1 2 2 Communications Jammed . | . . . . Distress Signals . | . . . . Times Spotted 84 | 1 17 23 43 Peak Tracking Total 6 | 1 4 5 6 Tactical Retreats 7 | . 1 1 5 Traps | -11 -10 -9 -8 ------- Run | Scr Mat Mat Mat Traps Triggered 7 | . 4 3 . Indirectly . | . . . . Trap Hack Attempts . | . . . . Triggered . | . . . . Disarmed . | . . . . Reprogrammed . | . . . . Reused . | . . . . Traps Extracted . | . . . . Installed . | . . . . Triggered . | . . . . Machines | -11 -10 -9 -8 ---------- Run | Scr Mat Mat Mat Machines Disabled 8 | . . 2 6 Max in Single Turn 2 | . . 2 2 Machines Sabotaged . | . . . . Garrisons Compromised . | . . . . Overloaded Fab Kills . | . . . . Fab Network Shutdowns . | . . . . Hacking | -11 -10 -9 -8 --------- Run | Scr Mat Mat Mat Machines Accessed 6 | . 2 2 2 Terminals 4 | . 2 1 1 Fabricators . | . . . . Repair Stations . | . . . . Recycling Units 1 | . . 1 . Scanalyzers 1 | . . . 1 Garrison Access . | . . . . Total Hacks 15 | . 3 3 9 Successful 9 | . . 3 6 Failed 6 | . 3 . 3 Catastrophic 1 | . 1 . . Database Lockouts . | . . . . Manual 1 | . 1 . . Terminals 7 | . 3 1 3 Fabricators . | . . . . Repair Stations . | . . . . Recycling Units 2 | . . 2 . Scanalyzers 6 | . . . 6 Garrison Access . | . . . . Terminal Hacks 1 | . . 1 . Emergency Access Points 1 | . . 1 . Fabricator Hacks . | . . . . Repair Station Hacks . | . . . . Recycling Unit Hacks 2 | . . 2 . Report Inventory 1 | . . 1 . Retrieve Components 1 | . . 1 . Scanalyzer 6 | . . . 6 Insert Component 3 | . . . 3 Analyze 3 | . . . 3 Garrison Access Hacks . | . . . . Unauthorized Hacks . | . . . . Terminals . | . . . . Fabricators . | . . . . Repair Stations . | . . . . Recycling Units . | . . . . Scanalyzers . | . . . . Garrison Access . | . . . . Data Cores Recovered . | . . . . Used . | . . . . Hacking Detections 4 | . 1 1 2 Full Trace Events . | . . . . Feedback Events . | . . . . Feedback Blocked . | . . . . Robot Schematics Acquired . | . . . . Robots Built . | . . . . Matter . | . . . . Time . | . . . . Total Robot Build Rating . | . . . . Part Schematics Acquired 3 | . . . 3 Parts Built . | . . . . Matter . | . . . . Time . | . . . . Total Part Build Rating . | . . . . Parts Repaired . | . . . . Time . | . . . . Parts Recycled . | . . . . Recycled Matter . | . . . . Retrieved Matter . | . . . . Retrieved Components 10 | . . 10 . Parts Scanalyzed 3 | . . . 3 Part Schematics Acquired 3 | . . . 3 Parts Damaged . | . . . . Bothacking | -11 -10 -9 -8 ------------ Run | Scr Mat Mat Mat Used RIF Installer . | . . . . Robots Hacked . | . . . . Non-combat . | . . . . Combat . | . . . . Robot Hacks Applied . | . . . . Relay Couplers Released . | . . . . Robots Rewired . | . . . . Allies Hacked . | . . . . Hacks Repelled . | . . . . Allies | -11 -10 -9 -8 -------- Run | Scr Mat Mat Mat Total Allies . | . . . . Largest Group . | . . . . Highest-Rated Group . | . . . . Highest-Rated Ally . | . . . . Total Orders . | . . . . Ally Attacks . | . . . . Total Damage . | . . . . Kills . | . . . . Allies Corrupted . | . . . . Allies Melted . | . . . . Intel | -11 -10 -9 -8 ------- Run | Scr Mat Mat Mat Robot Analysis Total . | . . . . Derelict Logs Recovered . | . . . . Drone Launches . | . . . . Drone Recoveries . | . . . . Exploration | -11 -10 -9 -8 ------------- Run | Scr Mat Mat Mat Turns Passed 2738 | 174 927 762 875 Spaces Moved 1682 | 148 670 464 400 Core 48 | 39 . . 9 Treads . | . . . . Legs 1634 | 109 670 464 391 Wheels . | . . . . Hover . | . . . . Flight . | . . . . Fastest Speed 50 | 50 120 120 120 Average Speed 120 | 101 120 120 130 Slowest Speed 550 | 120 150 120 550 Overloaded Moves . | . . . . Propulsion Burnouts . | . . . . Robots Hopped . | . . . . Cave-ins Triggered 2 | . . . 2 Exploration Rate (%) 41 | 7 94 33 30 Regions Visited 3 Branch Regions . Pre-discovered Areas . | . . . . Known Exits Taken . | . . . . Unknown Exits Taken 3 | 1 1 1 . Scrap Searched . | . . . . Spaces Dug . | . . . . Terrain Destroyed 227 | . . 46 181 Melee . | . . . . Projectile 3 | . . . 3 AOE 224 | . . 46 178 Actions | -11 -10 -9 -8 --------- Run | Scr Mat Mat Mat Total 2138 | 167 742 585 644 Wait 174 | . 14 53 107 Move 1679 | 147 669 463 400 Hop . | . . . . Pick Up 34 | 7 12 6 9 Fast Attach 24 | 3 7 7 7 Attach 20 | 3 1 4 12 Detach 1 | . . . 1 Swap 18 | . 3 3 12 Drop 24 | 3 10 1 10 Fire 158 | 4 26 44 84 Melee . | . . . . Ram . | . . . . Kick 6 | . . 4 2 Crush . | . . . . Escape Stasis . | . . . . Rewire . | . . . . Trap . | . . . . Miscellaneous . | . . . . Route ------- -11/Scrapyard -10/Materials (discovered 5 exits: *Mat x3 / [*Min x2]) -9/Materials -8/Materials History --------- Turn | Location | Event 2 | -11/Scrapyard | Met Revision 17 78 | -11/Scrapyard | Discovered new exit (range 8) 175 | -11/Scrapyard | Entered Materials 303 | -10/Materials | Build established: Mutant 402 | -10/Materials | Discovered new exit (range 16) 510 | -10/Materials | Discovered new exit (range 5) 714 | -10/Materials | Discovered new exit (range 9) 774 | -10/Materials | Discovered new exit (range 10) 952 | -10/Materials | Discovered new exit (range 5) 1102 | -10/Materials | Entered another Materials area 1102 | -9/Materials | Evolved 2 slots: Propulsion x2 1821 | -9/Materials | Lost 3 parts (1n2w) 1827 | -9/Materials | Discovered new exit (range 8) 1864 | -9/Materials | Entered another Materials area 1864 | -8/Materials | Evolved 2 slots: Power x1, Utility x1 2640 | -8/Materials | Crushed by falling debris 2640 | -8/Materials | System corruption reached 10% 2646 | -8/Materials | Crushed by falling debris 2677 | -8/Materials | Lost 7 parts (1p4n1u1w) 2713 | -8/Materials | Core integrity fell below 50% 2739 | -8/Materials | Self-destructed Last Messages --------------- 02722_ Acquired 34 matter. 02723_ Slug penetrates Wall. 02723_ R-06 Scavenger collects Terrain Scanner. 02725_ Acquired Lgt. Ion Engine. 02726_ K-01 Serf collects debris. 02726_ R-06 Scavenger collects Terrain Scan Processor. 02728_ K-01 Serf destroyed. 02729_ Penetrated by Slug. 02730_ G-50 Soldier destroyed. 02731_ ALERT: Construction progress impeded, dispatching reinforcements to local area. 02731_ Lgt. Ion Engine destroyed. 02732_ Penetrated by Slug. 02732_ Aluminum Leg destroyed. 02732_ System corrupted: Rocket Launcher failed to launch. 02732_ Rocket Launcher destroyed. 02733_ S5JGHN4X%FH5NYY9PGVN<:I|R L 02734_ K-01 Serf collects debris. 02736_ Slug penetrates Wall. 02738_ K-01 Serf collects debris. Map ----- +----------------------------------------------------+ | ????????????????# ?????????????????????????????? | | ????????????????#% +????????????????????????????? | | ????????????????# #????????????????????????? ? | | ????????????????# #????????????????????????? # | | ????????????????# #????????????????????????? # | | ????????????????# #########????????????????? # | | ????????????????# ## #????????????????? # | | ????????????????# ## "" #?????###########? # | | ????????????????# ## " "##?#??# ] ## # | | ????????????????# ## ## #??# # | | ????????????????# ## #??# # | | ???????########## ## # #??# + | | ???????? % # # #??# "" "" # | | ???????????????# # # ###?# ""S"" | | ???????????????# T% + u ### #?# """" # # | | ???????????????# #% # ### ? # # | | ???????????????# # =% ##+###/# # # | | ???????????????# ##### # g # % # | | ???????????????# ##### g""" """ # # | | ???????????????# # ] "Y """"" | | ???????????????#?# !% """ """"" # | | ?????????????????# * !% """"" # # # | | ?????????????????# *g """ # # # | | ?????????????????# # # # # | | ?????????????????# ####+####### # # | | ?????????????????# #@ #???## # # | | ?????????????????# # ########### # | | ?????????????????# # h "" # ## # | | ?????????????????# + rY" a# # # | | ?????????????????# #^ "" # # # | | ?????????????????######## ^ =# % ## # | | ??????????????????????? # kg# ##/##### + | | ?????????????????????? ![% # | | ????????????????????? %!* # | | ??????????????????? !| # | | ???????????????????# #### ### # ######## | | ???????############## ## % # ##### % #??????? | | ???????# = ####?# " ####???###% #??????? | | ???????# #????# T #????????# #??????? | | ???????# #????# " #????????#% #??????? | | ???????# """ """ !#?????! #??#####?#% ######## | | ???????# """ """ #????? ???? [# ## # | | ???????# """ """ #????? ! ???? """ # ## # | | ???????# #?????###??### """ # ## # | | ???????######+######???????#### # "" # ## # | | ??????????# ########???# # # ## !! # | | ??????????# #??## # + ## ! # | | ??????????# ##########+###### ## # | | ??????????#= = ##### #####+## | | ??????????# ########### # | +----------------------------------------------------+ Best States ------------- Heat Dissipation 45 Energy Generation 23 Energy Capacity 425 Matter Stores 350 Matter Capacity 350 Sight Range 16 Robot Scan Range 16 Terrain Scan Density 10 Resistance: KI 20 Resistance: TH 20 Resistance: EX 20 Resistance: EM 20 Resistance: I 20 Resistance: S 20 Resistance: P 20 Evasion (%) 50 Item Schematics ----------------- Rocket Launcher | -8/Materials | Scanalyzed Mni. Grenade Launcher | -8/Materials | Scanalyzed Aluminum Leg | -8/Materials | Scanalyzed Robot Schematics ------------------ None Fabricated ------------ Nothing Alien Tech Used ----------------- None Achievements -------------- Remodeling Unlikely Earthworm Use The Force Challenges ------------ None Game ------ Seed LargeTerrabombDoublenader Manual? 0 Play Time 00:41:55 Cumulative 6.7 hours Start 2019.11.14 @ 11:42:14 End 2019.11.19 @ 14:57:44 Sessions 6 Manual Loads 0 Difficulty Adventurer Special Mode None Game No. 5 Rogue 2 Adventurer 3 Explorer 0 Win Type - Total 0 Types 0/0/0/0/0/0/0 Lore% 13 Gallery% 12 Achievement% 13 Wizard Run 0 Options --------- ASCII 0 Keyboard 0 Movement Arrows Keybinds 0 Fullscreen 1 Font 18/Terminus Map View 76x50 Tactical HUD 1 Map Filters NONE Filters NONE Steam 1 RUN: d214fa6c-8ea7-4a1a-b605-61296b4ff08a